bitfinex/quotes_ETHUSD_20260213
["timestamp","ask_amount","ask_price","bid_price","bid_amount"]
[1770966884575,1.31015005,1949.9,1949.3,0.001]
[1770966886587,1.28218278,1949.8,1949.3,0.001]
[1770966888770,5.12873115,1949.9,1949.3,0.001]
[1770966889802,6.4388812,1949.9,1949.3,0.001]
[1770966890316,0.002,1950.2,1949.3,1.23576228]
[1770966890605,1.28198553,1950.1,1949.3,0.001]
[1770966890806,5.12994215,1950.2,1949.4,1.28244588]
[1770966891006,5.12994215,1950.2,1949.3,2.51823316]
[1770966892219,5.12994215,1950.2,1949.3,2.51827056]
[1770966893297,5.12994215,1950.2,1949.4,0.001]
[1770966893999,6.4400922,1950.2,1949.4,0.001]
[1770966894208,5.12994215,1950.2,1949.4,1.23576228]
[1770966895377,0.002,1950.2,1949.4,1.23576228]
[1770966895998,0.002,1950.2,1949.4,1.28344382]
[1770966896206,0.002,1950.2,1949.5,1.23476228]
[1770966897676,0.002,1950.2,1949.5,2.51712021]
[1770966898694,0.002,1950.2,1949.5,1.23476228]
[1770966900204,1.31215005,1950.2,1949.5,1.23476228]
[1770966900987,1.31215005,1950.2,1949.4,0.001]
[1770966901506,1.28198553,1950.1,1949.4,1.28344403]
[1770966901708,1.28198553,1950.1,1949.5,1.24441094]
[1770966902409,2.45712106,1950.1,1949.4,0.001]
[1770966902772,1.17513553,1950.0,1949.4,0.001]
[1770966903177,1.17513553,1949.9,1949.4,0.001]
[1770966903373,1.17513553,1949.8,1949.4,0.001]
[1770966903905,2.45738408,1949.7,1949.2,0.001]
[1770966904305,1.28224855,1949.7,1949.2,0.001]
[1770966904511,1.28224855,1949.7,1949.2,1.24541094]
[1770966905598,1.28224855,1949.7,1949.2,0.001]
[1770966905802,2.45738408,1949.7,1949.0,0.001]
[1770966906608,2.45738408,1949.7,1949.3,0.001]
[1770966907113,1.28224855,1949.7,1949.0,0.001]
[1770966907304,1.28224855,1949.7,1949.0,1.24541094]
[1770966907514,5.12857697,1949.9,1949.0,1.24541094]
[1770966908409,6.3037125,1949.9,1949.0,1.24541094]
[1770966908785,6.3037125,1949.9,1949.0,2.5281174]
[1770966908987,6.3037125,1949.9,1949.0,1.24541094]
[1770966909387,1.17513553,1949.8,1949.0,0.001]
[1770966909995,1.28224855,1949.7,1949.0,0.001]
[1770966910199,1.17513553,1949.6,1949.0,0.001]
[1770966912214,1.28238009,1949.5,1949.0,0.001]
[1770966913003,1.28236207,1949.6,1949.0,0.001]
[1770966913209,5.12879563,1949.8,1949.0,1.24541094]
[1770966913712,6.30393116,1949.8,1949.0,1.24541094]
[1770966914320,6.30393116,1949.8,1949.0,2.52811917]
[1770966915017,3.35810517,1950.0,1949.1,1.24441094]
[1770966916396,3.35810517,1950.0,1949.3,1.24441094]
[1770966916597,2.20903759,1950.1,1949.3,1.24441094]
[1770966916800,0.002,1950.1,1949.4,1.24441094]
[1770966918510,0.002,1950.1,1949.6,1.24441094]
[1770966918842,0.002,1950.0,1949.6,1.24441094]
[1770966920496,0.002,1950.0,1949.8,1.24441094]
[1770966920694,0.002,1950.2,1949.8,3.31541094]
[1770966920893,4.28357475,1950.8,1950.0,1.24441094]
[1770966921121,1.17513553,1950.7,1949.8,3.31541094]
[1770966922324,1.17513553,1950.7,1949.8,1.24441094]
[1770966922531,1.17513553,1950.7,1949.9,1.28211703]
[1770966922532,1.28165692,1950.6,1949.9,1.28211703]
[1770966922742,2.45679245,1950.6,1949.8,1.24441094]
[1770966923039,2.45679245,1950.6,1949.8,2.52657687]
[1770966923221,2.45679245,1950.6,1949.8,1.24441094]
[1770966923790,1.28165692,1950.6,1949.6,4.6006875]
[1770966924126,1.17513553,1950.5,1949.6,3.31841094]
[1770966924640,1.17513553,1950.3,1949.4,1.24441094]
[1770966924797,1.17513553,1950.3,1949.1,2.401]
[1770966924798,1.17513553,1950.3,1949.2,8.45071659]
[1770966925226,1.17513553,1950.3,1949.3,1.24441094]
[1770966925634,1.17513553,1950.0,1949.1,4.60400432]
[1770966925806,1.17513553,1950.2,1949.2,1.24441094]
[1770966928108,2.45712106,1950.1,1949.2,2.52694496]
[1770966929026,1.28198553,1950.1,1949.3,1.24441094]
[1770966929729,2.45712106,1950.1,1949.3,1.24441094]
[1770966930430,2.45712106,1950.1,1949.3,2.52691289]
[1770966931401,2.45712106,1950.1,1949.3,2.52691553]
[1770966931603,2.45712106,1950.1,1949.3,2.52791553]
[1770966931802,2.45712106,1950.1,1949.3,1.24541094]
[1770966932003,1.13155545,1950.0,1949.3,0.001]
[1770966932617,1.28211703,1949.9,1949.3,0.001]
[1770966933225,1.28202681,1950.1,1949.3,1.14648593]
[1770966934032,1.28197319,1950.2,1949.3,1.14648593]
[1770966934331,7.20854887,1950.3,1949.3,1.14648593]
[1770966934332,3.36285993,1950.3,1949.3,1.14648593]
[1770966934531,3.36285993,1950.3,1949.5,1.14548593]
[1770966934532,3.3628593,1950.3,1949.5,1.14548593]
[1770966935305,2.081,1950.3,1949.5,1.14548593]
[1770966935615,1.28176084,1950.5,1949.5,1.14548593]
[1770966935807,1.28176084,1950.5,1949.6,2.064]
[1770966936145,1.28176084,1950.5,1949.7,1.16332286]
[1770966936303,2.34845987,1950.5,1949.7,1.16332286]
[1770966936714,2.34845987,1950.5,1949.7,2.4455331]
[1770966936913,1.06669903,1950.4,1949.4,4.50976874]
[1770966937132,1.06669903,1950.4,1949.5,1.16332286]
[1770966937328,10.16666808,1950.5,1949.5,1.16332286]
[1770966937498,1.28176084,1950.5,1949.5,1.16332286]
[1770966938135,1.28370481,1950.6,1949.5,1.16332286]
[1770966939226,0.002,1950.6,1949.7,1.16332286]
[1770966941535,0.002,1950.6,1949.8,1.16332286]
[1770966942839,0.002,1950.6,1950.0,1.16332286]
[1770966943535,0.002,1950.6,1950.1,1.16332286]
[1770966943853,0.002,1950.6,1950.0,3.22732286]
[1770966945103,0.002,1950.6,1950.1,1.16332286]
[1770966945535,0.002,1950.6,1950.2,1.2819198]
[1770966946239,0.002,1950.6,1950.2,2.44524266]
[1770966946541,0.002,1950.6,1949.8,1.28317618]
[1770966946542,1.06869903,1950.6,1949.8,1.28317618]
[1770966947044,1.06869903,1950.6,1949.8,2.44649904]
[1770966947536,1.28172263,1950.5,1949.8,2.44649984]
[1770966948951,1.28172263,1950.5,1949.8,2.44650456]
[1770966949324,1.28172263,1950.5,1949.8,1.16432286]
[1770966949845,1.28172263,1950.5,1949.8,0.001]
[1770966949846,2.34842166,1950.5,1949.8,0.001]
[1770966950031,1.06669903,1950.4,1949.8,0.001]
[1770966951419,1.06669903,1950.3,1949.8,0.001]
[1770966952212,1.2819198,1950.2,1949.8,0.001]
[1770966952418,2.34861883,1950.2,1949.8,0.001]
[1770966952847,2.34861883,1950.2,1949.3,0.001]
[1770966952848,1.06669903,1950.1,1949.3,0.001]
[1770966953663,1.06669903,1949.8,1949.3,0.001]
[1770966954121,1.28224855,1949.7,1949.3,0.001]
[1770966954831,2.34894758,1949.7,1949.3,0.001]
[1770966956454,1.28224855,1949.7,1949.3,0.001]
[1770966956751,12.01760627,1949.9,1949.3,0.001]
[1770966956918,3.34816968,1949.9,1949.3,1.16432286]
[1770966957445,3.34816968,1949.9,1949.4,0.001]
[1770966960353,3.34816968,1949.9,1949.4,1.16432286]
[1770966961036,3.34816968,1949.9,1949.4,0.001]
[1770966961546,3.34816968,1949.9,1949.2,0.001]
[1770966961547,1.09945705,1949.8,1949.2,0.001]
[1770966962249,10.16707692,1949.9,1949.2,1.07877482]
[1770966962418,10.16707692,1949.9,1949.3,1.07777482]
[1770966962419,1.28216968,1949.9,1949.3,1.07777482]
[1770966962619,1.28216968,1949.9,1949.2,1.28357196]
[1770966962850,5.12835368,1950.0,1949.2,2.36134678]
[1770966963147,6.22781073,1950.0,1949.2,1.07877482]
[1770966963317,1.09945705,1949.9,1949.2,0.001]
[1770966964325,5.12835368,1950.0,1949.1,0.001]
[1770966964326,1.09945705,1949.7,1949.1,0.001]
[1770966964945,1.28231432,1949.6,1949.1,0.001]
[1770966965725,2.38177137,1949.6,1949.1,0.001]
[1770966966128,1.28231432,1949.6,1949.1,0.001]
[1770966967038,5.12925728,1949.7,1949.1,0.001]
[1770966967247,5.12925728,1949.7,1949.1,1.07877482]
[1770966967451,5.12925728,1949.7,1949.1,0.001]
[1770966968547,6.22871433,1949.7,1949.1,0.001]
[1770966968954,5.12868962,1950.0,1949.1,1.07877482]
[1770966968955,1.28205128,1950.0,1949.1,1.07877482]
[1770966969254,1.28218278,1949.8,1949.2,1.07777482]
[1770966969628,3.35815853,1949.9,1949.2,1.07777482]
[1770966970254,3.35815853,1949.9,1949.2,1.07877482]
[1770966970961,0.002,1949.5,1949.2,1.07877482]
[1770966971255,0.002,1949.5,1949.3,2.36028649]
[1770966971430,0.002,1949.5,1949.4,1.07777482]
[1770966972062,1.28203833,1950.1,1949.4,1.07777482]
[1770966974027,2.38149538,1950.1,1949.4,1.07777482]
[1770966975936,3.35996806,1950.2,1949.4,1.07777482]
[1770966976829,9.86755941,1950.2,1949.4,1.07777482]
[1770966977356,1.28396806,1950.2,1949.4,1.07777482]
[1770966977559,7.79151429,1950.2,1949.4,1.07777482]
[1770966977938,7.79151655,1950.2,1949.6,1.07777482]
[1770966978545,0.002,1950.2,1949.8,1.07777482]
[1770966980159,0.002,1950.2,1949.9,1.07777482]
[1770966980952,0.002,1950.2,1949.7,1.07777482]
[1770966981734,0.002,1950.2,1949.5,4.3931012]
[1770966982140,0.002,1950.2,1949.6,1.07777482]
[1770966983256,0.002,1950.1,1949.6,1.07777482]
[1770966984367,0.002,1950.1,1949.8,1.07777482]
[1770966986253,0.002,1950.1,1950.0,1.07777482]
[1770966987738,0.002,1950.3,1949.9,1.28211703]
[1770966988759,0.002,1950.3,1949.8,1.07777482]
[1770966988969,0.002,1950.3,1949.8,2.033]
[1770966989838,1.10145705,1950.3,1949.5,3.68236865]
[1770966990053,1.10145705,1950.3,1949.5,4.432]
[1770966990259,1.10145705,1950.3,1949.5,2.032]
[1770966990657,1.10145705,1950.3,1949.2,2.30375028]
[1770966990861,1.28205128,1950.0,1949.3,2.032]
[1770966991039,1.28205128,1950.0,1949.3,3.05221836]
[1770966991567,1.28203936,1950.1,1949.4,1.02021836]
[1770966992648,1.28196001,1950.2,1949.4,1.02021836]
[1770966993268,1.28196001,1950.2,1949.5,1.02021836]
[1770966995449,1.28196001,1950.2,1949.5,2.30256488]
[1770966995874,1.28196001,1950.2,1949.6,0.99156457]
[1770966996175,0.002,1950.1,1949.6,0.99156457]
[1770967003919,0.002,1950.1,1949.5,0.001]
[1770967004106,7.53007369,1950.0,1949.5,0.001]
[1770967004397,0.002,1950.1,1949.5,1.28335167]
[1770967004594,0.002,1950.1,1949.5,0.99256457]
[1770967005193,0.002,1950.1,1949.5,2.27493515]
[1770967006265,0.002,1950.1,1949.6,0.99156457]
[1770967009267,0.002,1950.1,1949.7,0.001]
[1770967010099,1.02466654,1950.1,1949.7,0.001]
[1770967010684,6.50740715,1950.0,1949.7,0.001]
[1770967011007,6.50740715,1949.8,1949.4,0.001]
[1770967011210,1.02266654,1949.9,1949.4,0.001]
[1770967011574,1.28218278,1949.8,1949.4,0.001]
[1770967013399,6.1513796,1949.9,1949.4,0.001]
[1770967013400,1.28215181,1949.9,1949.4,0.001]
[1770967013698,7.78950941,1950.0,1949.4,0.99256457]
[1770967014567,8.81217595,1950.0,1949.4,0.001]
[1770967014772,1.02266654,1949.9,1949.4,0.001]
[1770967016013,1.28218278,1949.8,1949.4,0.001]
[1770967016790,7.78958993,1949.8,1949.4,0.001]
[1770967017730,6.50740715,1949.6,1949.2,0.001]
[1770967018022,1.28238009,1949.5,1949.2,0.001]
[1770967020302,12.6593579,1949.6,1949.2,0.001]
[1770967020303,6.50740715,1949.6,1949.2,0.001]
[1770967020503,1.28223581,1949.8,1949.2,0.99256457]
[1770967021022,6.50740715,1949.3,1949.1,0.001]
[1770967021230,9.86864296,1949.8,1949.1,0.91123965]
[1770967021411,3.36123581,1949.8,1949.1,0.91123965]
[1770967021813,2.079,1949.8,1949.1,0.91123965]
[1770967022009,2.079,1949.8,1949.2,0.91023965]
[1770967022327,1.2821322,1949.9,1949.2,0.91023965]
[1770967022527,1.2821322,1949.9,1949.3,1.28351167]
[1770967022694,0.002,1949.7,1949.3,2.19375132]
[1770967022900,0.002,1949.7,1949.4,0.91023965]
[1770967024151,6.50940715,1949.7,1949.3,0.001]
[1770967024309,6.50740715,1949.5,1949.2,0.001]
[1770967024646,7.78978934,1949.5,1949.2,0.001]
[1770967028529,1.28238219,1949.5,1949.2,0.001]
[1770967028905,7.46927983,1949.4,1949.0,0.001]
[1770967029831,6.50740715,1949.2,1949.0,0.001]
[1770967030504,1.28264327,1949.1,1949.0,0.001]
[1770967030725,1.28264327,1949.1,1948.9,0.001]
[1770967031307,6.50740715,1949.0,1948.5,0.001]
[1770967031508,6.50740715,1949.0,1948.4,0.001]
[1770967031509,6.50740715,1948.8,1948.4,0.001]
[1770967032732,1.28290655,1948.7,1948.4,0.001]
[1770967032910,6.50740715,1948.6,1948.4,0.001]
[1770967033316,7.46927983,1948.6,1948.2,0.001]
[1770967033720,6.50740715,1948.4,1947.7,1.28352814]
[1770967034232,6.50740715,1948.4,1947.6,0.91023965]
[1770967034832,6.50740715,1948.4,1947.7,0.91023965]
[1770967034833,1.28316994,1948.3,1947.7,0.91023965]
[1770967035532,1.28316994,1948.3,1947.8,0.001]
[1770967036320,3.37908871,1948.5,1947.9,0.91023965]
[1770967036836,3.37908871,1948.5,1947.9,2.1936716]
[1770967037039,3.37904217,1948.5,1947.9,0.91023965]
[1770967037623,3.37904217,1948.5,1947.9,2.19366845]
[1770967037835,1.28304217,1948.5,1947.9,0.91023965]
[1770967038139,6.50740715,1948.4,1947.9,0.91023965]
[1770967038536,1.28304217,1948.5,1947.9,2.19365314]
[1770967039033,1.28304217,1948.5,1947.9,2.19366813]
[1770967039459,7.79042867,1948.6,1948.0,0.91023965]
[1770967039622,6.50740715,1948.6,1948.0,0.91023965]
[1770967039938,7.46927983,1948.9,1948.1,0.91023965]
[1770967040758,6.50740715,1948.7,1948.1,0.91023965]
[1770967041253,1.28297239,1948.6,1948.1,0.91023965]
[1770967041610,6.50740715,1948.5,1947.8,4.20571657]
[1770967042525,2.1,1948.6,1947.9,0.91023965]
[1770967042715,9.89029113,1948.8,1948.1,0.91023965]
[1770967042916,2.1,1948.8,1948.1,0.91023965]
[1770967043313,3.38267343,1949.1,1948.3,0.91023965]
[1770967044241,1.28267343,1949.1,1948.3,0.91023965]
[1770967045213,2.1,1949.2,1948.5,0.91023965]
[1770967045416,3.38258639,1949.2,1948.5,0.91023965]
[1770967047313,4.34445907,1949.2,1948.3,2.91923965]
[1770967047614,0.96187268,1949.1,1948.3,2.009]
[1770967047814,0.96187268,1949.1,1948.3,2.91923965]
[1770967048232,0.002,1949.0,1948.3,2.91923965]
[1770967048642,0.002,1949.0,1948.3,4.20240402]
[1770967048838,0.002,1949.0,1948.3,3.29216437]
[1770967049041,2.101,1949.0,1948.4,0.91023965]
[1770967049432,1.28277489,1948.9,1948.4,0.91023965]
[1770967049632,1.28277489,1948.9,1948.2,2.19446333]
[1770967050222,1.28277489,1948.9,1948.2,0.91123965]
[1770967050418,2.24464757,1948.9,1948.2,0.001]
[1770967050623,1.28277489,1948.9,1948.2,2.12628965]
[1770967051039,1.28277489,1948.9,1948.3,0.84206869]
[1770967051414,1.28473974,1949.0,1948.4,1.28310408]
[1770967051619,0.002,1949.0,1948.5,0.84206869]
[1770967054049,0.002,1949.0,1948.7,0.84206869]
[1770967055155,0.002,1949.0,1948.6,2.19288924]
[1770967055664,0.002,1949.0,1948.6,0.90991685]
[1770967056026,0.002,1949.0,1948.7,1.28290655]
[1770967056457,0.002,1949.0,1948.6,2.19284438]
[1770967057028,0.002,1949.0,1948.6,1.28292753]
[1770967057258,0.002,1949.0,1948.7,0.90991685]
[1770967059263,0.002,1949.0,1948.7,2.19281354]
[1770967059424,0.002,1949.0,1948.7,0.90991685]
[1770967060359,0.002,1949.0,1948.9,0.90991685]
[1770967060660,0.002,1949.0,1948.7,2.19278217]
[1770967060661,0.002,1948.9,1948.7,2.19278217]
[1770967061267,3.33945173,1949.4,1948.7,2.19278217]
[1770967061834,3.33945173,1949.4,1948.8,0.90991685]
[1770967062433,3.33945173,1949.4,1948.8,2.1927442]
[1770967062833,3.33945173,1949.4,1948.8,0.90991685]
[1770967063068,4.19985669,1949.4,1948.6,4.20383639]
[1770967064838,6.51325425,1949.3,1948.6,4.20383639]
[1770967065041,6.51325425,1949.3,1948.7,0.90991685]
[1770967065357,3.33945173,1949.4,1948.8,0.90991685]
[1770967067138,10.71311094,1949.4,1948.6,0.90991685]
[1770967067337,7.37365921,1949.2,1948.6,2.011]
[1770967067570,6.51325425,1949.2,1948.6,2.011]
[1770967067768,6.51325425,1949.2,1948.6,2.92091685]
[1770967068482,0.86040496,1949.1,1948.4,0.90991685]
[1770967068785,0.86040496,1949.1,1948.4,2.19301449]
[1770967068956,0.86040496,1949.1,1948.4,0.90991685]
[1770967069151,8.65636829,1949.0,1948.2,2.19414409]
[1770967069348,8.65636829,1949.0,1948.3,2.91991685]
[1770967069956,1.28270908,1949.0,1948.4,0.90991685]
[1770967070366,2.14311404,1949.0,1948.2,0.91091685]
[1770967070572,7.37365921,1948.7,1948.2,0.001]
[1770967070878,1.28270908,1949.0,1948.2,0.001]
[1770967070879,0.86040496,1948.6,1948.2,0.001]
[1770967071088,2.092,1948.9,1948.2,0.91091685]
[1770967071248,1.28284072,1948.8,1948.2,2.1941388]
[1770967071652,3.37477757,1948.9,1948.3,0.90991685]
[1770967072743,4.23518253,1948.9,1948.2,0.001]
[1770967074174,3.37477757,1948.9,1948.2,0.001]
[1770967075445,4.23518253,1948.9,1948.2,0.001]
[1770967075886,0.86040496,1948.8,1948.2,0.001]
[1770967077484,1.28290655,1948.7,1948.2,0.001]
[1770967078280,0.86040496,1948.6,1948.2,0.001]
[1770967079668,1.28302692,1948.6,1948.2,0.001]
[1770967081076,2.14687049,1948.6,1948.2,0.001]
[1770967081457,1.28289051,1948.8,1948.2,0.001]
[1770967082255,1.28289051,1948.8,1948.2,0.82188825]
[1770967082590,3.37481184,1948.9,1948.2,0.82188825]
[1770967083991,1.28289495,1948.8,1948.2,0.001]
[1770967084176,1.28289495,1948.8,1948.2,0.82188825]
[1770967084382,1.28289495,1948.8,1948.3,0.001]
[1770967084596,1.28273522,1949.0,1948.3,0.82188825]
[1770967085700,2.14657879,1949.0,1948.3,0.001]
[1770967088386,0.86384357,1948.9,1948.3,0.001]
[1770967090312,0.86384357,1948.7,1948.3,0.001]
[1770967090457,0.86384357,1948.6,1948.0,0.001]
[1770967092462,2.1468818,1948.5,1948.0,0.001]
[1770967092865,6.5195655,1948.4,1948.0,0.001]
[1770967093058,7.38340907,1948.2,1947.8,0.001]
[1770967093284,6.5195655,1948.0,1947.7,0.001]
[1770967093583,0.86384357,1948.2,1947.7,0.001]
[1770967093584,7.38340907,1948.2,1947.7,0.001]
[1770967093785,6.5195655,1948.2,1947.7,0.001]
[1770967094083,6.5195655,1948.0,1947.7,0.001]
[1770967094272,8.6145655,1948.4,1947.7,0.001]
[1770967094273,6.5195655,1948.2,1947.7,0.001]
[1770967094477,1.28330167,1948.1,1947.7,0.001]
[1770967096487,6.5195655,1948.0,1947.7,0.001]
[1770967096674,7.80299257,1948.0,1947.7,0.001]
[1770967097194,7.80299257,1948.0,1947.8,0.001]
[1770967097965,6.5195655,1948.0,1947.8,0.001]
[1770967098200,7.8029367,1948.0,1947.8,0.001]
[1770967098696,2.101,1948.4,1947.9,0.82088825]
[1770967099087,2.101,1948.4,1948.0,0.82088825]
[1770967099279,1.78884357,1948.8,1948.0,0.82088825]
[1770967099280,6.5195655,1948.6,1948.0,0.82088825]
[1770967100596,5.13123302,1948.9,1948.2,0.82088825]
[1770967100802,6.5195655,1948.6,1948.0,0.82088825]
[1770967101177,6.5195655,1948.6,1948.0,2.10425418]
[1770967102000,6.5195655,1948.6,1948.0,0.82088825]
[1770967102573,7.38340907,1948.8,1948.1,0.82088825]
[1770967102781,1.28290655,1948.7,1948.1,0.82088825]
[1770967103872,1.28281092,1948.9,1948.2,6.5195655]
[1770967104076,1.28275671,1949.0,1948.3,0.82088825]
[1770967104704,6.5195655,1948.9,1948.3,0.82088825]
[1770967104903,7.80234993,1948.9,1948.3,2.1040272]
[1770967105819,7.80234993,1948.9,1948.3,0.82088825]
[1770967107499,7.80234993,1948.9,1948.3,2.10405531]
[1770967107703,3.38770114,1949.1,1948.4,0.82088825]
[1770967108021,2.105,1949.1,1948.6,0.82088825]
[1770967108188,3.38764492,1949.1,1948.4,0.82088825]
[1770967109297,3.38764492,1949.1,1948.4,2.10395153]
[1770967109499,0.002,1948.8,1948.4,2.10395153]
[1770967110018,0.002,1948.8,1948.4,4.09195153]
[1770967112393,6.5215655,1948.8,1948.4,1.992]
[1770967112787,6.5215655,1948.8,1948.2,3.16830794]
[1770967113120,6.51891985,1948.8,1948.2,2.76130794]
[1770967113633,6.51691985,1948.4,1948.1,2.4]
[1770967113806,6.51891985,1948.8,1948.0,0.76830794]
[1770967113991,6.51891985,1948.8,1947.9,7.80135259]
[1770967113992,0.002,1948.8,1948.2,0.76830794]
[1770967114422,0.002,1948.8,1948.2,2.05151828]
[1770967114793,0.002,1948.8,1948.3,0.79288194]
[1770967118016,0.002,1948.8,1948.3,2.07604619]
[1770967118335,0.002,1948.8,1948.3,0.79288194]
[1770967119309,0.002,1948.8,1948.3,2.07604972]
[1770967120412,0.002,1948.8,1948.4,0.79288194]
[1770967120795,0.002,1948.8,1948.3,0.79288194]
[1770967121921,0.002,1948.7,1948.3,0.79288194]
[1770967122224,0.002,1948.7,1948.3,2.07601993]
[1770967123024,0.002,1948.7,1948.4,0.79288194]
[1770967124640,0.002,1948.7,1948.3,0.79288194]
[1770967125800,0.002,1948.7,1948.5,0.79288194]
[1770967127697,0.002,1948.7,1948.4,7.30980179]
[1770967127917,0.002,1948.7,1948.4,6.51691985]
[1770967128227,0.002,1948.7,1948.4,2.003]
[1770967129830,0.002,1948.7,1948.2,1.28319656]
[1770967130031,0.002,1948.7,1948.3,2.006]
[1770967132136,0.002,1948.7,1948.3,3.28916782]
[1770967132829,0.76602098,1948.7,1948.0,0.79288194]
[1770967133026,0.76402098,1948.6,1948.0,0.79288194]
[1770967133629,0.002,1948.7,1948.1,7.30980179]
[1770967133830,0.002,1948.7,1948.2,0.79288194]
[1770967134007,0.002,1948.7,1948.3,0.79288194]
[1770967134206,0.002,1948.7,1948.3,2.07605011]
[1770967136113,0.002,1948.7,1948.4,2.07593133]
[1770967136939,0.002,1948.7,1948.4,0.79288194]
[1770967137141,0.002,1948.7,1948.4,2.07597904]
[1770967138135,0.002,1948.7,1948.4,0.79288194]
[1770967138921,0.002,1948.7,1948.3,7.8000402]
[1770967139308,0.002,1948.7,1948.3,1.28312035]
[1770967139512,0.76602098,1948.7,1948.1,2.4]
[1770967139711,0.76602098,1948.7,1948.2,2.017]
[1770967139914,0.76602098,1948.7,1948.3,2.017]
[1770967140334,0.76402098,1948.5,1948.1,2.4]
[1770967140531,7.79989224,1948.6,1948.1,4.417]
[1770967140731,1.28297239,1948.6,1948.1,4.417]
[1770967140935,2.02204914,1948.6,1948.1,4.417]
[1770967141441,2.02204914,1948.6,1948.1,2.017]
[1770967142555,0.73907675,1948.5,1948.1,2.017]
[1770967142918,0.73907675,1948.5,1948.0,2.017]
[1770967144546,2.02216041,1948.5,1948.0,2.018]
[1770967144845,7.79992952,1948.6,1948.0,3.30135949]
[1770967145038,0.002,1948.7,1948.1,0.73151342]
[1770967145235,0.002,1948.7,1948.3,0.73151342]
[1770967145436,1.28492036,1948.7,1948.1,0.73151342]
[1770967145749,2.02399711,1948.7,1948.1,0.73151342]
[1770967146560,0.002,1948.6,1948.1,0.73151342]
[1770967147320,0.002,1948.6,1948.1,4.41476738]
[1770967148622,0.002,1948.6,1948.2,0.73151342]
[1770967149640,0.002,1948.6,1948.3,4.03768336]
[1770967150156,0.002,1948.6,1948.4,0.73151342]
[1770967150456,0.002,1948.6,1948.3,9.82308979]
[1770967150657,0.002,1948.6,1948.3,2.023]
[1770967150848,0.002,1948.6,1948.3,2.025]
[1770967152186,0.002,1948.6,1948.3,3.30816018]
[1770967152347,0.002,1948.6,1948.4,7.24843327]
[1770967153467,0.002,1948.6,1948.4,0.73151342]
[1770967154029,0.002,1948.6,1948.4,7.24843327]
[1770967154555,0.002,1948.6,1948.5,1.28303823]
[1770967154758,0.002,1948.8,1948.5,2.01455165]
[1770967154955,0.002,1948.8,1948.6,2.032]
[1770967156440,0.002,1948.8,1948.2,7.80011222]
[1770967156644,0.74107675,1948.8,1948.3,2.034]
[1770967157251,0.002,1948.8,1948.4,0.73151342]
[1770967157670,0.002,1948.8,1948.3,2.034]
[1770967158034,0.002,1948.5,1948.3,2.034]
[1770967158580,0.002,1948.5,1948.3,2.033]
[1770967158874,0.74107675,1948.5,1947.9,1.28437924]
[1770967159103,0.002,1948.5,1948.0,2.76551342]
[1770967159441,0.002,1948.5,1948.0,2.034]
[1770967161171,0.74107675,1948.5,1947.9,0.001]
[1770967161468,0.74107675,1948.5,1948.0,2.035]
[1770967161955,0.002,1948.5,1948.0,2.035]
[1770967162354,0.002,1948.5,1948.3,0.73151342]
[1770967162664,0.002,1948.5,1948.3,2.76651342]
[1770967163169,0.002,1948.5,1948.3,4.0496647]
[1770967163370,0.002,1948.8,1948.3,10.56658455]
[1770967163556,0.002,1948.8,1948.4,0.73151342]
[1770967164267,0.002,1948.8,1948.5,7.24843327]
[1770967164457,0.002,1948.8,1948.6,2.037]
[1770967164768,0.002,1949.1,1948.7,2.01441997]
[1770967169067,0.002,1949.1,1948.9,6.51691985]
[1770967169270,0.002,1949.1,1949.0,4.0572225]
[1770967169978,0.002,1949.1,1949.0,2.77451342]
[1770967170175,0.002,1949.1,1949.0,2.043]
[1770967173868,0.002,1949.1,1948.6,8.54130098]
[1770967174069,0.002,1949.1,1948.8,2.049]
[1770967175290,0.002,1949.1,1948.8,3.33181391]
[1770967175593,0.002,1949.1,1948.8,2.049]
[1770967176172,0.002,1949.1,1948.8,3.33183672]
[1770967176372,0.002,1949.1,1948.9,0.68680195]
[1770967177196,0.002,1949.3,1948.9,0.68680195]
[1770967177590,0.002,1949.3,1949.0,1.28270908]
[1770967177798,0.002,1949.3,1948.9,1.96952764]
[1770967178000,0.002,1949.3,1948.8,9.84410808]
[1770967179075,0.002,1949.3,1948.8,10.53091003]
[1770967180590,0.002,1949.3,1948.7,1.28284975]
[1770967180797,0.72396655,1949.3,1948.8,2.058]
[1770967182288,0.72196655,1949.2,1948.6,2.058]
[1770967182483,2.00460982,1949.1,1948.9,0.001]
[1770967182885,0.72196655,1949.0,1948.9,0.001]
[1770967183096,0.72196655,1949.0,1948.8,0.001]
[1770967183302,0.72196655,1949.0,1948.4,2.057]
[1770967183496,7.23428816,1949.0,1948.4,2.057]
[1770967183698,7.23428816,1948.8,1948.4,2.057]
[1770967184011,7.23428816,1948.8,1948.2,2.057]
[1770967184904,8.51719443,1948.8,1948.2,2.057]
[1770967186883,8.51719443,1948.8,1948.2,3.34023188]
[1770967187507,13.7192518,1949.0,1948.2,10.53935544]
[1770967187685,3.35876133,1949.0,1948.3,0.68680195]
[1770967188083,10.59304949,1949.0,1948.3,0.68680195]
[1770967188502,0.72196655,1948.9,1948.2,2.057]
[1770967188693,0.72196655,1948.7,1948.2,2.057]
[1770967189120,8.51726055,1948.6,1948.1,0.001]
[1770967189315,2.00493894,1948.6,1948.1,0.001]
[1770967191811,0.72196655,1948.5,1948.1,0.001]
[1770967192216,1.28290655,1948.7,1948.1,0.001]
[1770967192714,2.0048731,1948.7,1948.1,0.001]
[1770967193213,2.00498916,1948.6,1948.1,0.001]
[1770967193414,3.35874782,1949.0,1948.2,0.68680195]
[1770967193622,3.358717,1949.0,1948.2,0.68680195]
[1770967195213,3.358717,1949.0,1948.2,0.68780195]
[1770967195514,0.002,1948.7,1948.3,1.96997189]
[1770967196098,0.002,1948.7,1948.3,0.68680195]
[1770967196293,0.002,1948.7,1948.2,1.28418345]
[1770967197120,0.002,1948.7,1948.2,1.9709854]
[1770967197623,0.002,1948.7,1948.2,0.68780195]
[1770967198493,0.002,1948.7,1948.2,0.001]
[1770967198821,0.002,1948.7,1948.2,1.28423331]